fUSD/lending_fUSD_20251222
["ID","MTS","AMOUNT","RATE_DAILY","PERIOD"]
[399473392,1766398248341,-150.0,0.00016507,2]
[399473393,1766398248351,-150.0,0.00016507,2]
[399473394,1766398248361,-150.0,0.00016507,2]
[399473395,1766398248371,-500.0,0.00016507,2]
[399473396,1766398248380,-500.0,0.00016507,2]
[399473397,1766398248389,-201.36635016,0.00016507,2]
[399473398,1766398248398,-500.0,0.00016515,2]
[399473399,1766398248408,-500.0,0.00016515,2]
[399473400,1766398248419,-500.0,0.0001652,2]
[399473401,1766398248428,-11200.7795947,0.00016524,2]
[399473402,1766398248439,-21414.08497626,0.00016524,2]
[399473403,1766398248448,-965.0,0.00016529,2]
[399473404,1766398248458,-232.09963481,0.00016535,2]
[399473405,1766398248467,-500.0,0.00016535,2]
[399473406,1766398248477,-150.0,0.00016535,2]
[399473407,1766398248488,-150.0,0.00016535,2]
[399473408,1766398248497,-500.0,0.00016535,2]
[399473409,1766398248507,-150.0,0.00016535,2]
[399473410,1766398248515,-164.7217925,0.00016535,2]
[399473411,1766398248525,-150.0,0.00016535,2]
[399473412,1766398248534,-256.91793341,0.00016535,2]
[399473413,1766398248543,-500.0,0.00016535,2]
[399473414,1766398248552,-467.42824898,0.00016535,2]
[399473415,1766398248562,-500.0,0.00016548,2]
[399473416,1766398248571,-500.0,0.00016575,2]
[399473417,1766398248580,-1000.0,0.000166,2]
[399473418,1766398248589,-500.0,0.00016602,2]
[399473419,1766398248597,-500.0,0.0001663,2]
[399473420,1766398248607,-162.438,0.00016638,2]
[399473421,1766398248618,-596.674,0.00016638,2]
[399473422,1766398248627,-384.68827763,0.0001664,2]
[399473423,1766398248636,-500.0,0.00016657,2]
[399473424,1766398248645,-3018.19191469,0.0001666,2]
[399473425,1766398248654,-525.99859536,0.00016671,2]
[399473426,1766398248663,-513.1625593,0.00016671,2]
[399473427,1766398248673,-500.0,0.00016671,2]
[399473428,1766398248683,-500.0,0.00016671,2]
[399473429,1766398248693,-500.0,0.00016685,2]
[399473430,1766398248703,-505.01496115,0.00016712,2]
[399473431,1766398248713,-2469.13,0.00016712,2]
[399473432,1766398248723,-500.0,0.00016712,2]
[399473433,1766398248731,-500.0,0.00016753,2]
[399473434,1766398248741,-197.68289653,0.00016767,2]
[399473435,1766398248750,-965.0,0.00016777,2]
[399473436,1766398248759,-10073.051,0.000168,2]
[399473437,1766398248768,-1000.0,0.000168,2]
[399473438,1766398248778,-4502.0,0.00016804,2]
[399473439,1766398248791,-7000.0,0.0001683,2]
[399473440,1766398248800,-20000.0,0.0001683,2]
[399473441,1766398248809,-47000.0,0.0001683,2]
[399473442,1766398248819,-500.0,0.00016838,2]
[399473443,1766398248830,-25000.0,0.00016838,3]
[399473444,1766398248839,-25000.0,0.00016847,3]
[399473445,1766398248848,-25000.0,0.00016856,3]
[399473446,1766398248859,-965.0,0.00016857,2]
[399473447,1766398248869,-200.0,0.00016863,2]
[399473448,1766398248878,-200.0,0.00016863,2]
[399473449,1766398248887,-200.0,0.00016864,2]
[399473450,1766398248898,-200.0,0.00016864,2]
[399473451,1766398248913,-200.0,0.00016864,2]
[399473452,1766398248922,-200.0,0.00016864,2]
[399473453,1766398248931,-25000.0,0.00016865,3]
[399473454,1766398248940,-25000.0,0.00016874,3]
[399473455,1766398248949,-179.52,0.00016878,2]
[399473456,1766398248959,-500.0,0.00016882,2]
[399473457,1766398248968,-500.0,0.00016882,2]
[399473458,1766398248977,-25000.0,0.00016882,3]
[399473459,1766398248986,-25000.0,0.00016891,3]
[399473460,1766398248995,-2210.90134156,0.00016895,2]
[399473461,1766398249005,-2210.90134156,0.00016896,2]
[399473462,1766398249015,-2210.90134156,0.00016897,2]
[399473463,1766398249024,-2210.90134156,0.00016898,2]
[399473464,1766398249032,-500.0,0.00016899,2]
[399473465,1766398249042,-2210.90134156,0.00016899,2]
[399473466,1766398249054,-25000.0,0.000169,3]
[399473467,1766398249063,-1859.08946872,0.000169,2]
[399473468,1766398249072,-384.68827763,0.000169,2]
[399473469,1766398249081,-11200.7795947,0.000169,2]
[399473470,1766398249089,-312.02478167,0.000169,2]
[399473471,1766398249098,-714.74572409,0.000169,2]
[399473472,1766398249107,-2210.90134156,0.000169,2]
[399473473,1766398249116,-151.22567882,0.000169,2]
[399473474,1766398249125,-21414.08497626,0.000169,2]
[399473475,1766398249134,-341.91285847,0.00016921,2]
[399473476,1766398249143,-151.07722389,0.00016921,2]
[399473477,1766398249152,-2000.0,0.00016931,2]
[399473478,1766398249161,-151.0,0.00016938,2]
[399473479,1766398249170,-267.46074303,0.00016938,2]
[399473480,1766398249180,-243.0,0.00016946,2]
[399473481,1766398249189,-7000.0,0.0001695,2]
[399473482,1766398249199,-500.0,0.00016958,2]
[399473483,1766398249209,-457.0,0.00016959,2]
[399473484,1766398249218,-150.0,0.00016973,2]
[399473485,1766398249228,-150.09235231,0.00016973,2]
[399473486,1766398249237,-500.0,0.00016973,2]
[399473487,1766398249247,-150.0,0.00016973,2]
[399473488,1766398249256,-842.4,0.00016983,2]
[399473489,1766398249266,-2469.13,0.00016986,2]
[399473490,1766398249275,-178.51553078,0.00016986,2]
[399473491,1766398249284,-885.44942567,0.0001699,2]
[399473492,1766398249294,-885.44942567,0.0001699,2]
[399473493,1766398249303,-151.0,0.00016992,2]
[399473494,1766398249312,-500.0,0.00016994,2]
[399473495,1766398249321,-500.0,0.00016994,2]
[399473496,1766398249331,-300.0,0.00016994,2]
[399473497,1766398249340,-681.43055394,0.00016994,2]
[399473498,1766398249350,-500.0,0.00016994,2]
[399473499,1766398249358,-122581.2019823,0.00016995,2]
[399473500,1766398249367,-193875.3507159,0.00016995,2]
[399473501,1766398249377,-5314.0268248,0.00016995,2]
[399473502,1766398249387,-3507.380679,0.00016995,2]
[399473503,1766398249397,-1222.5370871,0.00016995,2]
[399473504,1766398249406,-9737.3140195,0.00016995,2]
[399473505,1766398249415,-151.0,0.00016995,2]
[399473506,1766398249425,-151.0,0.00016995,2]
[399473507,1766398249434,-341.499816,0.00016995,2]
[399473508,1766398249443,-341.499816,0.00016995,2]
[399473509,1766398249452,-341.499816,0.00016995,2]
[399473510,1766398249462,-341.499816,0.00016995,2]
[399473511,1766398249471,-151.0,0.00016997,2]
[399473512,1766398249481,-500.0,0.00016999,2]
[399473513,1766398249490,-500.0,0.00016999,2]
[399473514,1766398249500,-500.0,0.00016999,2]
[399473515,1766398249509,-500.0,0.00016999,2]
[399473516,1766398249521,-531.25264543,0.00016999,2]
[399473517,1766398249530,-300.0,0.00016999,2]
[399473518,1766398249539,-300.0,0.00016999,2]
[399473519,1766398249549,-300.0,0.00016999,2]
[399473520,1766398249559,-500.0,0.00016999,2]
[399473521,1766398249568,-500.0,0.00016999,2]
[399473522,1766398249578,-511.62107373,0.00016999,2]
[399473523,1766398249587,-500.0,0.00016999,2]
[399473524,1766398249597,-300.0,0.00016999,2]
[399473525,1766398249606,-500.0,0.00016999,2]
[399473526,1766398249616,-500.0,0.00016999,2]
[399473527,1766398249624,-500.0,0.00016999,2]
[399473528,1766398249634,-500.0,0.00016999,2]
[399473529,1766398249644,-500.0,0.00016999,2]
[399473530,1766398249653,-592.36853989,0.00016999,2]
[399473531,1766398249662,-5267686.86849752,0.00017,2]
[399473532,1766398249671,-1530975.45041941,0.00017,2]
[399473533,1766398249685,-2362.19682132,0.00017,2]
[399473534,1766398249700,-6176.93849631,0.00017,2]
[399473535,1766398249876,-304.23,0.00015636,2]
[399473536,1766398249888,-6225.77,0.00015636,2]
[399473537,1766398249898,-426.11805482,0.000169,2]
[399473538,1766398249907,-882037.89513142,0.00017,2]
[399473539,1766398249917,-3534.06551118,0.00017,2]
[399473540,1766398249926,-3500.000001,0.00017,2]
[399473541,1766398249935,-200.0,0.00017,2]
[399473542,1766398249944,-153.202067,0.00017,2]
[399473543,1766398249953,-151.0,0.00017,2]
[399473544,1766398249962,-255.307319,0.00017,2]
[399473545,1766398249972,-151.0,0.00017,2]
[399473546,1766398249981,-151.0,0.00017,2]
[399473547,1766398249991,-151.0,0.00017,2]
[399473548,1766398250000,-151.0,0.00017,2]
[399473549,1766398250010,-261.497182,0.00017,2]
[399473550,1766398250019,-151.0,0.00017,2]
[399473551,1766398250029,-221.325547,0.00017,2]
[399473552,1766398250039,-200.0,0.00017,2]
[399473553,1766398250049,-1000.0,0.00017,2]
[399473554,1766398250059,-151.0,0.00017,2]
[399473555,1766398250068,-151.0,0.00017,2]
[399473556,1766398250077,-151.0,0.00017,2]
[399473557,1766398250087,-250.0,0.00017,2]
[399473558,1766398250097,-151.0,0.00017,2]
[399473559,1766398250107,-323.55857022,0.00017,2]
[399473560,1766398250350,-151.0,0.00017,2]
[399473561,1766398250374,-279.575532,0.00017,2]
[399473562,1766398250383,-341.499816,0.00017,2]
[399473563,1766398250393,-341.499816,0.00017,2]
[399473564,1766398250402,-341.499816,0.00017,2]
[399473565,1766398250411,-341.499816,0.00017,2]
[399473566,1766398250420,-341.499816,0.00017,2]
[399473567,1766398250429,-341.499816,0.00017,2]
[399473568,1766398250437,-341.499816,0.00017,2]
[399473569,1766398250446,-341.499816,0.00017,2]
[399473570,1766398250455,-10000.0,0.00017,2]
[399473571,1766398250464,-877.484289,0.00017,2]
[399473572,1766398250473,-877.484289,0.00017,2]
[399473573,1766398250482,-877.484289,0.00017,2]
[399473574,1766398250491,-877.484289,0.00017,2]
[399473575,1766398250500,-877.484289,0.00017,2]
[399473576,1766398250509,-877.484289,0.00017,2]
[399473577,1766398250519,-877.484289,0.00017,2]
[399473578,1766398250528,-877.484289,0.00017,2]
[399473579,1766398250537,-10000.0,0.00017,2]
[399473580,1766398250547,-151.0,0.00017,2]
[399473581,1766398250555,-151.0,0.00017,2]
[399473582,1766398250565,-151.0,0.00017,2]
[399473583,1766398250574,-151.0,0.00017,2]
[399473584,1766398250583,-151.0,0.00017,2]
[399473585,1766398250591,-151.0,0.00017,2]
[399473586,1766398250600,-151.0,0.00017,2]
[399473587,1766398250609,-151.0,0.00017,2]
[399473588,1766398250618,-151.0,0.00017,2]
[399473589,1766398250627,-151.0,0.00017,2]
[399473590,1766398250636,-151.0,0.00017,2]
[399473591,1766398250644,-151.0,0.00017,2]
[399473592,1766398250654,-151.0,0.00017,2]
[399473593,1766398250663,-151.0,0.00017,2]
[399473594,1766398250672,-151.0,0.00017,2]
[399473595,1766398250680,-151.0,0.00017,2]
[399473596,1766398250689,-151.0,0.00017,2]
[399473597,1766398250701,-151.0,0.00017,2]
[399473598,1766398250710,-151.0,0.00017,2]
[399473599,1766398250719,-151.0,0.00017,2]
[399473600,1766398250728,-1000.0,0.00017,2]
[399473601,1766398250736,-10000.0,0.00017,2]
[399473602,1766398250745,-151.0,0.00017,2]
[399473603,1766398250754,-151.0,0.00017,2]
[399473604,1766398250762,-180.702146,0.00017,2]
[399473605,1766398250771,-1074.39262391,0.00017,2]
[399473606,1766398250783,-155.50239982,0.00017,2]
[399473607,1766398250792,-204.33438108,0.00017,2]
[399473608,1766398250802,-500.0,0.00017,2]
[399473609,1766398250811,-4502.0,0.00017015,2]
[399473610,1766398250820,-1000.0,0.00017021,2]
[399473611,1766398250830,-356.16077878,0.00017021,2]
[399473612,1766398250839,-1000.0,0.00017021,2]
[399473613,1766398250847,-1000.0,0.00017021,2]
[399473614,1766398250856,-1000.0,0.00017021,2]
[399473615,1766398250865,-1000.0,0.00017021,2]
[399473616,1766398250874,-1000.0,0.00017021,2]
[399473617,1766398250883,-1000.0,0.00017021,2]
[399473618,1766398250892,-1000.0,0.00017021,2]
[399473619,1766398250900,-581.27415104,0.00017021,2]
[399473620,1766398250909,-1000.0,0.00017021,2]
[399473621,1766398250918,-1000.0,0.00017021,2]
[399473622,1766398250927,-1000.0,0.00017021,2]
[399473623,1766398250936,-1000.0,0.00017021,2]
[399473624,1766398250944,-1000.0,0.00017021,2]
[399473625,1766398250953,-1000.0,0.00017021,2]
[399473626,1766398250962,-1000.0,0.00017021,2]
[399473627,1766398250971,-1000.0,0.00017021,2]
[399473628,1766398250980,-502.13430343,0.00017021,2]
[399473629,1766398250989,-1000.0,0.00017021,2]
[399473630,1766398250997,-1000.0,0.00017021,2]
[399473631,1766398251006,-1004.81720167,0.00017021,2]
[399473632,1766398251015,-500.0,0.00017028,2]
[399473633,1766398251024,-500.0,0.00017055,2]
[399473634,1766398251033,-615.93668933,0.00017083,2]
[399473635,1766398251042,-4502.0,0.00017099,2]
[399473636,1766398251051,-736.0,0.00017124,2]
[399473637,1766398251060,-5888.0,0.00017129,2]
[399473638,1766398251069,-166.66,0.0001716,2]
[399473639,1766398251078,-200.0,0.0001717,2]
[399473640,1766398251087,-200.0,0.0001717,2]
[399473641,1766398251096,-1000.0,0.000172,2]
[399473642,1766398251105,-7000.0,0.0001721,2]
[399473643,1766398251113,-4502.0,0.00017217,2]
[399473644,1766398251122,-315.82,0.00017249,2]
[399473645,1766398251131,-1098.0,0.00017254,2]
[399473646,1766398251139,-150.1,0.00017257,2]
[399473647,1766398251148,-2469.13,0.0001726,2]
[399473648,1766398251157,-300.0,0.00017282,2]
[399473649,1766398251166,-300.0,0.00017282,2]
[399473650,1766398251175,-34836.87503,0.00017283,2]
[399473651,1766398251185,-5888.0,0.00017327,2]
[399473652,1766398251193,-200.0,0.00017342,2]
[399473653,1766398251202,-200.0,0.00017342,2]
[399473654,1766398251211,-4502.0,0.00017382,2]
[399473655,1766398251220,-1000.0,0.000174,2]
[399473656,1766398251229,-4502.0,0.00017417,2]
[399473657,1766398251239,-1000.0,0.0001744,2]
[399473658,1766398251248,-199.06645972,0.00017449,3]
[399473659,1766398251259,-7000.0,0.0001745,2]
[399473660,1766398251269,-4502.0,0.00017497,2]
[399473661,1766398251278,-200.0,0.00017515,2]
[399473662,1766398251287,-5533.0,0.00017518,2]
[399473663,1766398251297,-150.10981544,0.00017521,2]
[399473664,1766398251306,-2469.13,0.00017534,2]
[399473665,1766398251315,-1255.80359821,0.00017548,2]
[399473666,1766398251324,-307.86580758,0.00017567,2]
[399473667,1766398251334,-300.0,0.00017567,2]
[399473668,1766398251343,-1306.90902189,0.00017568,2]
[399473669,1766398251354,-1500.0,0.00017568,2]
[399473670,1766398251363,-1500.0,0.00017568,2]
[399473671,1766398251372,-1500.0,0.00017568,2]
[399473672,1766398251381,-1500.0,0.00017568,2]
[399473673,1766398251390,-1500.0,0.00017568,2]
[399473674,1766398251399,-1500.0,0.00017568,2]
[399473675,1766398251409,-1311.86809345,0.00017568,2]
[399473676,1766398251418,-676.20718988,0.00017568,2]
[399473677,1766398251428,-1500.0,0.00017568,2]
[399473678,1766398251437,-1500.0,0.00017568,2]
[399473679,1766398251446,-1500.0,0.00017568,2]
[399473680,1766398251455,-1468.92362011,0.00017568,2]
[399473681,1766398251464,-1500.0,0.00017568,2]
[399473682,1766398251473,-1500.0,0.00017568,2]
[399473683,1766398251482,-1500.0,0.00017568,2]
[399473684,1766398251492,-1500.0,0.00017568,2]
[399473685,1766398251501,-1500.0,0.00017568,2]
[399473686,1766398251511,-5888.0,0.000176,2]
[399473687,1766398251520,-4502.0,0.00017635,2]
[399473688,1766398251530,-246.72,0.00017645,2]
[399473689,1766398251540,-500.0,0.00017673,2]
[399473690,1766398251550,-500.0,0.00017673,2]
[399473691,1766398251559,-500.0,0.00017673,2]
[399473692,1766398251568,-500.0,0.00017673,2]
[399473693,1766398251579,-500.0,0.00017673,2]
[399473694,1766398251588,-500.0,0.00017673,2]
[399473695,1766398251598,-500.0,0.00017673,2]
[399473696,1766398251607,-500.0,0.00017673,2]
[399473697,1766398251617,-500.0,0.00017673,2]
[399473698,1766398251627,-500.0,0.00017673,2]
[399473699,1766398251636,-500.0,0.00017673,2]
[399473700,1766398251646,-500.0,0.00017673,2]
[399473701,1766398251655,-500.0,0.00017673,2]
[399473702,1766398251664,-500.0,0.00017673,2]
[399473703,1766398251674,-500.0,0.00017673,2]
[399473704,1766398251682,-500.0,0.00017673,2]
[399473705,1766398251692,-500.0,0.00017673,2]
[399473706,1766398251701,-500.0,0.00017673,2]
[399473707,1766398251711,-500.0,0.00017673,2]
[399473708,1766398251720,-166.66,0.00017676,2]
[399473709,1766398251729,-4502.0,0.00017686,2]
[399473710,1766398251738,-200.0,0.0001769,2]
[399473711,1766398251747,-7000.0,0.000177,2]
[399473712,1766398251757,-7773.1575045,0.00017755,2]
[399473713,1766398251766,-1054.0,0.00017757,2]
[399473714,1766398251775,-2469.13,0.00017808,2]
[399473715,1766398251788,-500.0,0.00017808,2]
[399473716,1766398251798,-505.59167587,0.00017835,2]
[399473717,1766398251807,-151.47080458,0.00017872,2]
[399473718,1766398251815,-179.52,0.00017889,2]
[399473719,1766398251825,-4502.0,0.00017945,2]
[399473720,1766398251834,-7000.0,0.0001795,2]
[399473721,1766398251843,-1600.0,0.00017961,2]
[399473722,1766398251853,-150.1,0.00017978,2]
[399473723,1766398251861,-5533.0,0.00017988,2]
[399473724,1766398251870,-4502.0,0.00017998,2]
[399473725,1766398251879,-500.0,0.00017999,2]
[399473726,1766398251888,-500.0,0.00017999,2]
[399473727,1766398251897,-500.0,0.00017999,2]
[399473728,1766398251907,-500.0,0.00017999,2]
[399473729,1766398251916,-516.02053629,0.00017999,2]
[399473730,1766398251925,-500.0,0.00017999,2]
[399473731,1766398251935,-507.5550191,0.00017999,2]
[399473732,1766398251943,-504.51634156,0.00017999,2]
[399473733,1766398251952,-500.0,0.00017999,2]
[399473734,1766398251962,-500.0,0.00017999,2]
[399473735,1766398251971,-500.0,0.00017999,2]
[399473736,1766398251980,-500.0,0.00017999,2]
[399473737,1766398251989,-534.39778007,0.00017999,2]
[399473738,1766398251998,-500.0,0.00017999,2]
[399473739,1766398252007,-535.91773514,0.00017999,2]
[399473740,1766398252016,-500.0,0.00017999,2]
[399473741,1766398252025,-500.0,0.00017999,2]
[399473742,1766398252034,-500.0,0.00017999,2]
[399473743,1766398252043,-500.0,0.00017999,2]
[399473744,1766398252053,-300.0,0.00017999,2]
[399473745,1766398252063,-178673.57008152,0.00018,2]
[399473746,1766398252073,-42849.94444083,0.00018,2]
[399473747,1766398252082,-1185.78700724,0.00018,2]
[399473748,1766398252092,-14332.41834918,0.00018,2]
[399473749,1766398252101,-150.09,0.00018,2]
[399473750,1766398252111,-4502.0,0.00018002,2]
[399473751,1766398252121,-4502.0,0.00018006,2]
[399473752,1766398252130,-179.51649155,0.00018022,2]
[399473753,1766398252139,-2344.99,0.00018069,2]
[399473754,1766398252149,-2469.13,0.00018082,2]
[399473755,1766398252159,-1000.0,0.00018082,2]
[399473756,1766398252168,-210.55,0.00018094,2]
[399473757,1766398252177,-1772.73483202,0.000181,2]
[399473758,1766398252186,-271.667064,0.00018101,2]
[399473759,1766398252196,-422.44903277,0.00018103,2]
[399473760,1766398252205,-151.0,0.00018113,2]
[399473761,1766398252215,-300.0,0.00018115,2]
[399473762,1766398252224,-500.0,0.00018116,2]
[399473763,1766398252234,-500.0,0.00018116,2]
[399473764,1766398252244,-500.0,0.00018116,2]
[399473765,1766398252253,-1000.0,0.00018116,2]
[399473766,1766398252263,-2000.0,0.00018116,2]
[399473767,1766398252272,-2000.0,0.00018116,2]
[399473768,1766398252281,-2078.56774959,0.00018116,2]
[399473769,1766398252291,-1099.70922982,0.00018116,2]
[399473770,1766398252301,-500.0,0.00018116,2]
[399473771,1766398252310,-2000.0,0.00018116,2]
[399473772,1766398252320,-2000.0,0.00018116,2]
[399473773,1766398252329,-2000.0,0.00018116,2]
[399473774,1766398252338,-2000.0,0.00018116,2]
[399473775,1766398252347,-2000.0,0.00018116,2]
[399473776,1766398252356,-217.0059997,0.00018116,2]
[399473777,1766398252366,-2000.0,0.00018116,2]
[399473778,1766398252375,-2000.0,0.00018116,2]
[399473779,1766398252384,-500.0,0.00018156,2]
[399473780,1766398252394,-4502.0,0.00018159,2]
[399473781,1766398252403,-1098.0,0.00018163,2]
[399473782,1766398252412,-210.55,0.0001819,2]
[399473783,1766398252421,-166.66,0.00018191,2]
[399473784,1766398252430,-1168.2181174,0.00018257,2]
[399473785,1766398252440,-4502.0,0.00018257,2]
[399473786,1766398252449,-210.55,0.00018285,2]
[399473787,1766398252459,-500.0,0.00018294,2]
[399473788,1766398252468,-151.0,0.00018307,2]
[399473789,1766398252477,-277.35679052,0.00018307,2]
[399473790,1766398252487,-5533.0,0.00018319,2]
[399473791,1766398252495,-200.0,0.00018319,2]
[399473792,1766398252505,-544.45,0.0001834,2]
[399473793,1766398252514,-556.25,0.0001834,2]
[399473794,1766398252523,-308.45911544,0.00018355,2]
[399473795,1766398252532,-2469.13,0.00018356,2]
[399473796,1766398252541,-341.499816,0.00018356,2]
[399473797,1766398252551,-341.499816,0.00018356,2]
[399473798,1766398252560,-341.499816,0.00018356,2]
[399473799,1766398252569,-341.499816,0.00018356,2]
[399473800,1766398252578,-877.484289,0.00018356,2]
[399473801,1766398252587,-877.484289,0.00018356,2]
[399473802,1766398252597,-877.484289,0.00018356,2]
[399473803,1766398252607,-877.484289,0.00018356,2]
[399473804,1766398252616,-151.0,0.00018356,2]
[399473805,1766398252626,-151.0,0.00018356,2]
[399473806,1766398252637,-151.0,0.00018356,2]
[399473807,1766398252648,-151.0,0.00018356,2]
[399473808,1766398252657,-151.0,0.00018356,2]
[399473809,1766398252667,-276.047342,0.00018356,2]
[399473810,1766398252676,-151.0,0.00018356,2]
[399473811,1766398252686,-151.0,0.00018356,2]
[399473812,1766398252695,-151.0,0.00018356,2]
[399473813,1766398252704,-151.0,0.00018356,2]
[399473814,1766398252713,-151.0,0.00018356,2]
[399473815,1766398252722,-69733.8,0.00018356,2]
[399473816,1766398252731,-246.72,0.00018381,2]
[399473817,1766398252739,-1252.0,0.00018529,2]
[399473818,1766398252748,-544.45,0.00018614,2]
[399473819,1766398252757,-556.25,0.00018614,2]
[399473820,1766398252766,-2469.13,0.0001863,2]
[399473821,1766398252776,-564.0,0.00018636,2]
[399473822,1766398252788,-4805.0,0.00018636,2]
[399473823,1766398252798,-2429.0,0.00018636,2]
[399473824,1766398252807,-265.14,0.00018636,2]
[399473825,1766398252816,-500.0,0.00018658,2]
[399473826,1766398252827,-2500.0,0.00018664,2]
[399473827,1766398252836,-2500.0,0.00018664,2]
[399473828,1766398252845,-2444.30175321,0.00018664,2]
[399473829,1766398252856,-2500.0,0.00018664,2]
[399473830,1766398252866,-378.42161118,0.00018664,2]
[399473831,1766398252875,-1001.85164738,0.00018664,2]
[399473832,1766398252885,-1494.96312016,0.00018664,2]
[399473833,1766398252894,-1467.32096518,0.00018664,2]
[399473834,1766398252903,-1646.13726288,0.00018664,2]
[399473835,1766398252912,-1000.0,0.0001876,2]
[399473836,1766398252921,-5314.0268248,0.00018798,2]
[399473837,1766398252930,-3507.380679,0.00018798,2]
[399473838,1766398252939,-1222.5370871,0.00018798,2]
[399473839,1766398252948,-150.9,0.000188,2]
[399473840,1766398252957,-150.9,0.000188,2]
[399473841,1766398252966,-150.9,0.000188,2]
[399473842,1766398252975,-150.9,0.000188,2]
[399473843,1766398252984,-150.9,0.000188,2]
[399473844,1766398252994,-150.0,0.00018863,2]
[399473845,1766398253005,-150.1,0.00018883,2]
[399473846,1766398253014,-155.80376724,0.000189,2]
[399473847,1766398253024,-2469.27894267,0.00018904,2]
[399473848,1766398253033,-842.4,0.00018985,2]
[399473849,1766398253042,-500.0,0.00018999,2]
[399473850,1766398253053,-500.0,0.00018999,2]
[399473851,1766398253062,-349.26999972,0.00018999,2]
[399473852,1766398253073,-557.08917325,0.00018999,2]
[399473853,1766398253083,-500.0,0.00018999,2]
[399473854,1766398253092,-500.0,0.00018999,2]
[399473855,1766398253101,-451.43777448,0.00018999,2]
[399473856,1766398253111,-503.72680128,0.00018999,2]
[399473857,1766398253121,-574.81599122,0.00018999,2]
[399473858,1766398253131,-500.0,0.00018999,2]
[399473859,1766398253140,-500.0,0.00018999,2]
[399473860,1766398253150,-500.0,0.00018999,2]
[399473861,1766398253160,-500.0,0.00018999,2]
[399473862,1766398253170,-547.81256791,0.00018999,2]
[399473863,1766398253179,-151.0,0.00018999,2]
[399473864,1766398253189,-5149.27655142,0.00019,2]
[399473865,1766398253199,-486.64088377,0.00019,2]
[399473866,1766398253208,-486.64088377,0.00019,2]
[399473867,1766398253217,-136466.33568209,0.00019,2]
[399473868,1766398253226,-94066.59579414,0.00019,2]
[399473869,1766398253242,-1768.08,0.00019,2]
[399473870,1766398253513,-1086.88479984,0.00019,2]
[399473871,1766398253744,-151.0,0.00014879,2]
[399473872,1766398253754,-1446.44114134,0.00019,2]
[399473873,1766398253766,-412.52917591,0.00019,2]
[399473874,1766398253786,-259.90101775,0.00019,2]
[399473875,1766398253807,-564.0,0.00019,2]
[399473877,1766399430096,6156.59959463,0.00022,30]
[399473886,1766399432249,-1050.21920627,0.000131,2]
[399473888,1766399432259,-663.8,0.00013148,2]
[399473890,1766399432268,-169.322,0.00013148,2]
[399473891,1766399432278,-250.0,0.00013158,2]
[399473892,1766399432288,-300.0,0.00013169,2]
[399473893,1766399432298,-195.0,0.00013169,2]
[399473894,1766399432308,-250.0,0.00013211,2]
[399473895,1766399432317,-275.46568857,0.00013242,2]
[399473896,1766399432326,-1961.52,0.00013277,2]
[399473897,1766399432336,-300.0,0.00013315,2]
[399473898,1766399432345,-1200.0,0.00013315,2]
[399473899,1766399432354,-300.0,0.00013315,2]
[399473900,1766399432364,-150.0,0.00013315,2]
[399473901,1766399432373,-5125.72701293,0.00013316,2]
[399473902,1766399432385,-2389.94928522,0.00013316,2]